bitfinex-derivatives/quotes_ETHF0:USTF0_20250709
["timestamp","ask_amount","ask_price","bid_price","bid_amount"]
[1752089804914,1.14672,2739.8,2739.7,1.38003]
[1752089805108,26.83472,2739.8,2739.7,1.38003]
[1752089805308,0.7298,2739.9,2739.8,0.72977]
[1752089805506,26.4168,2739.9,2739.8,1.37997]
[1752089805707,26.4168,2739.9,2739.8,2.38397]
[1752089805909,52.569,2740.2,2739.8,7.26574711]
[1752089806107,0.72978,2739.9,2739.8,4.58779]
[1752089806407,1.14668,2739.9,2739.8,4.58779]
[1752089806607,1.14668,2739.9,2739.8,5.59179]
[1752089806807,0.72978,2739.9,2739.8,5.59179]
[1752089807015,1.14668,2739.9,2739.8,4.58779]
[1752089807209,0.72978,2739.9,2739.8,3.858]
[1752089807403,1.14668,2739.9,2739.8,3.858]
[1752089807608,26.83468,2739.9,2739.8,1.38]
[1752089808713,52.569,2740.2,2739.8,6.68651]
[1752089808915,53.29872,2740.2,2740.1,5.11904203]
[1752089809115,78.98472,2740.2,2740.1,5.59172]
[1752089810017,78.98372,2740.2,2740.1,5.59172]
[1752089810516,78.98372,2740.2,2740.1,4.862]
[1752089811118,78.98372,2740.2,2740.1,5.59172]
[1752089811318,78.98372,2740.2,2740.1,4.862]
[1752089812117,78.98372,2740.2,2740.1,3.858]
[1752089812318,78.98372,2740.2,2740.1,0.6502]
[1752089812721,26.41472,2740.2,2740.1,0.6502]
[1752089813418,26.83162,2740.2,2740.1,0.6502]
[1752089814120,26.83162,2740.2,2740.1,3.858]
[1752089814319,26.83162,2740.2,2740.1,0.6502]
[1752089815220,26.8316,2740.2,2740.1,4.58772]
[1752089815419,26.8316,2740.2,2740.1,0.6502]
[1752089816316,0.72975,2740.0,2739.9,0.72976]
[1752089816513,26.40875,2740.0,2739.9,0.6502]
[1752089816714,0.72978,2739.9,2739.8,3.2078]
[1752089816915,0.72978,2739.9,2739.8,3.858]
[1752089817108,1.14668,2739.9,2739.8,3.858]
[1752089818720,1.75928,2739.9,2739.8,3.858]
[1752089819017,2.47162203,2739.9,2739.1,3.2078]
[1752089819319,0.6126,2739.9,2739.8,1.91132203]
[1752089819520,3.2078,2740.0,2739.9,0.72978]
[1752089819820,28.8838,2740.0,2739.9,0.72978]
[1752089820015,3.2078,2740.0,2739.9,2.04708]
[1752089820216,25.675,2740.0,2739.9,2.04706]
[1752089820821,26.0919,2740.0,2739.9,2.04706]
[1752089821221,0.4169,2740.0,2739.9,2.04706]
[1752089821422,26.0929,2740.0,2739.9,2.04706]
[1752089822122,0.4169,2740.0,2739.9,2.04706]
[1752089822414,0.4169,2740.0,2739.9,1.3173]
[1752089822614,0.4169,2740.0,2739.4,2.11865721]
[1752089822615,0.72988,2739.5,2739.4,2.11865721]
[1752089822819,0.72993,2739.3,2739.2,1.004]
[1752089823012,0.72993,2739.3,2739.2,1.3542]
[1752089823215,1.91145203,2739.3,2739.2,1.3542]
[1752089823521,0.72999,2739.1,2739.0,2.14926682]
[1752089823719,31.08181317,2739.1,2739.0,2.14926682]
[1752089824023,0.73001,2739.0,2738.7,3.17753022]
[1752089824226,30.06232203,2739.1,2738.7,0.6502]
[1752089824414,30.98422203,2739.1,2738.7,0.6502]
[1752089824617,3.2078,2739.1,2738.8,1.18152203]
[1752089824816,4.58423,2739.4,2739.0,0.6502]
[1752089825021,25.674,2739.3,2739.2,0.72994]
[1752089825218,3.8543,2739.4,2739.3,0.72993]
[1752089825414,28.8808,2739.4,2739.3,2.62503]
[1752089825614,52.578,2739.7,2739.6,0.72985]
[1752089825819,78.251,2739.7,2739.6,1.38005]
[1752089826019,52.578,2739.7,2739.6,2.38405]
[1752089826325,78.251,2739.7,2739.6,2.38405]
[1752089827221,3.27054223,2740.2,2740.1,0.72972]
[1752089827414,26.3059,2740.2,2740.1,0.72972]
[1752089828019,27.0356,2740.2,2740.1,0.72972]
[1752089828324,0.72974,2740.1,2740.0,0.72972]
[1752089828520,26.40174,2740.1,2740.0,0.72972]
[1752089828916,25.672,2740.1,2740.0,0.72972]
[1752089829222,26.3062,2740.1,2740.0,0.72972]
[1752089829619,25.672,2740.1,2740.0,0.72972]
[1752089829818,25.672,2740.1,2740.0,1.34552]
[1752089830125,26.3062,2740.1,2740.0,1.34552]
[1752089830325,25.672,2740.1,2740.0,1.34552]
[1752089830819,26.3062,2740.1,2740.0,1.34552]
[1752089831028,0.00547216,2740.3,2740.2,0.7297]
[1752089831323,26.30767216,2740.3,2740.2,1.3455]
[1752089832114,0.63967216,2740.3,2740.2,1.3455]
[1752089832320,0.63967216,2740.3,2740.2,2.3005]
[1752089832321,25.67247216,2740.3,2740.2,2.3005]
[1752089832725,0.00547216,2740.3,2740.2,2.3005]
[1752089832927,25.67147216,2740.3,2740.2,2.3005]
[1752089833223,0.00547216,2740.3,2740.2,3.6085]
[1752089833423,2.16e-06,2740.3,2740.2,9.2686]
[1752089835021,2.16e-06,2740.3,2740.2,4.2686]
[1752089835323,2.16e-06,2740.3,2740.2,9.2686]
[1752089835630,3.2078,2741.4,2741.1,0.72946]
[1752089835925,2.02266154,2742.2,2742.1,0.72919]
[1752089836226,2.28098871,2742.7,2742.6,0.72906]
[1752089836431,5.45064671,2743.2,2742.7,3.2078]
[1752089836720,5.26642215,2743.7,2743.6,0.72879]
[1752089836927,62.426,2745.0,2743.6,4.2078]
[1752089837117,2.40803858,2744.7,2744.2,3.2078]
[1752089837318,3.68733858,2744.6,2743.9,3.2078]
[1752089837524,1.2793,2744.6,2743.9,3.2078]
[1752089837723,1.2793,2744.6,2744.2,0.00547216]
[1752089838022,0.9817,2744.5,2744.2,0.00547216]
[1752089838327,0.9817,2746.3,2744.6,1.82131]
[1752089838628,0.9817,2747.0,2746.2,3.2078]
[1752089838925,0.37652,2746.9,2745.2,0.0054617]
[1752089839122,0.37652,2746.9,2746.4,3.2078]
[1752089839523,10.37652,2746.9,2746.4,3.2078]
[1752089839818,5.37652,2746.9,2746.4,3.2078]
[1752089840135,5.0,2746.9,2746.8,3.2078]
[1752089840332,4.65285,2746.9,2746.8,8.85181716]
[1752089840529,3.2078,2749.4,2746.8,3.3078]
[1752089840730,1.2487,2749.3,2748.3,3.2078]
[1752089840926,0.6594,2750.3,2748.3,3.2078]
[1752089841228,6.97e-06,2748.8,2748.7,0.72744]
[1752089841422,6.97e-06,2748.8,2748.1,2.60955579]
[1752089841735,0.9817,2750.2,2748.7,3.2078]
[1752089841922,0.9817,2750.2,2750.1,3.2078]
[1752089842121,0.9817,2750.2,2750.0,3.2078]
[1752089842320,0.9817,2750.2,2747.4,2.60955579]
[1752089842321,5.9817,2750.2,2749.7,3.2078]
[1752089842528,4.1895,2750.2,2746.7,2.10301011]
[1752089842725,0.9817,2750.2,2747.4,2.60955579]
[1752089843027,73.727,2751.6,2749.9,3.2078]
[1752089843332,3.2078,2751.7,2750.6,0.72694]
[1752089843625,2.60955579,2751.0,2750.7,3.2078]
[1752089843826,74.479,2750.9,2750.3,3.2078]
[1752089844024,0.6521,2751.3,2750.1,3.2078]
[1752089844227,3.2078,2751.1,2750.5,3.2078]
[1752089844425,3.26165579,2751.3,2749.1,3.2078]
[1752089844426,3.2078,2750.8,2749.1,3.2078]
[1752089844727,3.2078,2750.6,2748.9,2.10830353]
[1752089844927,1.2665,2750.7,2750.4,3.2078]
[1752089845130,1.2665,2750.5,2750.3,3.2078]
[1752089845328,0.6521,2751.3,2750.1,3.2078]
[1752089845529,0.9817,2750.5,2749.8,3.2078]
[1752089845723,2.60955579,2750.1,2749.5,3.2132617]
[1752089845922,0.9817,2750.5,2750.0,3.2078]
[1752089846133,0.9817,2750.5,2749.5,0.0054617]
[1752089846134,0.9817,2750.5,2750.3,3.2078]
[1752089846426,3.2078,2751.3,2750.3,3.2078]
[1752089846620,1.2665,2751.2,2750.6,3.2078]
[1752089846826,1.2665,2751.2,2750.2,3.2078]
[1752089847026,2.60955579,2750.8,2750.0,2.77298]
[1752089847226,1.99343,2750.7,2750.0,2.77298]
[1752089847427,1.99343,2750.7,2750.2,3.2078]
[1752089847428,1.99341,2750.7,2750.2,3.2078]
[1752089847621,1.2665,2750.7,2750.2,3.2078]
[1752089848024,2.60955579,2750.3,2750.2,3.2078]
[1752089848224,2.60955579,2750.3,2749.9,3.2078]
[1752089848426,1.2194,2750.2,2749.3,3.2078]
[1752089848926,0.7271,2750.0,2749.3,3.2078]
[1752089849122,1.2194,2749.9,2749.0,4.1628]
[1752089849325,1.2194,2749.9,2749.5,2.7784417]
[1752089849732,1.2194,2749.9,2749.5,0.9604617]
[1752089849927,3.82895579,2749.9,2749.5,0.9604617]
[1752089850128,3.82895579,2749.9,2745.9,1.82044]
[1752089850129,2.60955579,2749.6,2748.5,3.2078]
[1752089850333,1.2152,2749.5,2748.5,3.2078]
[1752089850532,1.2152,2749.5,2748.5,5.02578]
[1752089850832,1.2152,2749.5,2749.1,3.2078]
[1752089851128,3.2078,2749.2,2748.1,3.2078]
[1752089851333,2.1969,2749.1,2748.4,3.2078]
[1752089851629,2.1969,2749.1,2748.5,3.2078]
[1752089852022,2.1969,2749.1,2748.5,5.02578]
[1752089852228,0.0054617,2750.0,2749.0,3.2078]
[1752089852425,1.2152,2749.7,2749.1,0.955]
[1752089852632,1.2152,2749.7,2748.9,4.1628]
[1752089852822,1.2152,2749.7,2749.4,3.2078]
[1752089853026,0.0054617,2750.0,2749.5,0.955]
[1752089853230,1.2206617,2750.0,2749.5,0.955]
[1752089853430,3.2078,2749.8,2749.5,0.955]
[1752089853624,2.60955579,2749.6,2748.7,3.2078]
[1752089853831,3.2078,2749.2,2748.7,3.2078]
[1752089854026,2.60955579,2748.8,2748.1,3.2078]
[1752089854230,1.2999,2748.7,2748.1,3.2078]
[1752089854430,3.2078,2748.5,2747.8,3.2078]
[1752089854630,1.2999,2748.4,2747.5,3.2078]
[1752089854835,4.1895,2748.9,2747.5,3.2078]
[1752089855133,0.0054617,2748.4,2748.1,3.93538]
[1752089855534,0.0054617,2748.4,2748.1,3.2078]
[1752089855924,0.0054617,2748.4,2748.1,4.1628]
[1752089856134,0.0054617,2748.4,2748.1,5.02578]
[1752089856333,0.0054617,2748.4,2748.2,0.72757]
[1752089856528,0.0054617,2748.4,2748.3,0.72754]
[1752089856729,0.0054617,2748.4,2748.1,5.02578]
[1752089856925,0.0054617,2748.4,2748.1,6.70837]
[1752089857137,0.0054617,2748.4,2748.2,0.72755]
[1752089857428,0.0054617,2748.4,2748.1,5.02578]
[1752089857627,0.0054617,2748.4,2748.3,0.72754]
[1752089857829,1.06881642,2748.8,2748.3,0.50290003]
[1752089858029,0.71400442,2748.8,2748.4,3.71070003]
[1752089858230,0.71400442,2748.8,2748.5,0.50290003]
[1752089858430,0.71400442,2748.8,2748.6,0.50290003]
[1752089858629,3.92180442,2748.8,2748.7,0.50290003]
[1752089858836,0.71400442,2748.8,2748.7,0.84412464]
[1752089859335,0.71400442,2748.8,2748.7,0.50290003]
[1752089859537,0.71400442,2748.8,2748.7,1.07159011]
[1752089859538,8.92180442,2748.8,2748.7,1.07159011]
[1752089859733,8.92180442,2748.8,2748.7,0.34120103]
[1752089860033,8.92180442,2748.8,2747.3,3.2078]
[1752089860234,3.2078,2747.7,2747.5,0.72774]
[1752089860428,3.2078,2748.2,2747.4,0.72777]
[1752089860627,3.2078,2747.7,2747.1,0.9182]
[1752089860934,0.72758,2748.2,2747.3,0.7278]
[1752089861134,3.2078,2747.4,2747.3,0.7278]
[1752089861430,2.73446482,2747.4,2747.1,0.9182]
[1752089861627,2.73446482,2747.4,2747.1,2.73618]
[1752089861830,3.2078,2747.3,2747.1,0.9182]
[1752089862133,0.81991486,2747.2,2747.1,4.85385]
[1752089862433,3.2078,2747.9,2747.1,5.94398]
[1752089862628,3.2078,2747.9,2747.5,0.72774]
[1752089862828,3.2078,2747.9,2747.4,3.2078]
[1752089863030,0.6554,2748.0,2747.4,3.2078]
[1752089863229,0.6554,2748.0,2747.4,5.02578]
[1752089863528,0.6554,2748.0,2747.7,0.72769]
[1752089864031,0.6554,2748.0,2747.4,3.2078]
[1752089864333,3.2078,2748.5,2747.4,5.02578]
[1752089864530,3.2078,2748.5,2747.8,0.72766]
[1752089864926,3.2078,2748.5,2747.4,5.02578]
[1752089864927,3.2078,2748.5,2747.9,0.72765]
[1752089865131,3.2078,2748.5,2748.0,0.72761]
[1752089865333,1.2583,2748.4,2748.1,0.72759]
[1752089865531,1.2583,2748.4,2748.0,0.72761]
[1752089865727,3.2078,2749.1,2748.1,0.9182]
[1752089865928,1.2546,2748.9,2748.1,0.9182]
[1752089866132,1.2546,2748.9,2748.3,0.72753]
[1752089866334,1.2546,2748.9,2748.1,1.81798]
[1752089866731,2.37985125,2748.7,2747.7,3.2078]
[1752089866928,2.2455,2748.6,2747.4,3.2078]
[1752089867230,3.36215584,2748.1,2747.9,0.0054617]
[1752089867428,1.77225063,2748.0,2747.9,0.0054617]
[1752089867933,0.57659586,2748.0,2747.9,0.0054617]
[1752089868132,0.22170754,2748.0,2747.9,0.0054617]
[1752089868333,0.08563457,2748.0,2747.9,2.18958695]
[1752089868638,0.72761,2748.1,2747.9,2.18958695]
[1752089868834,2.32403,2748.4,2748.0,2.18412525]
[1752089869038,0.72756,2748.3,2748.1,2.18404984]
[1752089869341,0.9909,2748.4,2748.2,2.18404984]
[1752089869533,1.71842,2748.4,2748.3,2.18404984]
[1752089869840,40.244,2748.9,2748.3,2.18404984]
[1752089870040,0.72741,2748.8,2748.7,10.40340229]
[1752089870335,0.72741,2748.8,2748.7,12.58745213]
[1752089870534,5.72741,2748.8,2748.7,12.58745213]
[1752089870738,5.72741,2748.8,2748.7,9.46827412]
[1752089871135,45.91941,2748.8,2748.7,2.18404984]
[1752089871333,52.76962366,2748.8,2748.7,2.18404984]
[1752089871737,52.76962366,2748.8,2748.7,3.32168148]
[1752089872040,52.76962366,2748.8,2748.7,3.66297097]
[1752089872440,52.76962366,2748.8,2748.7,7.85843867]
[1752089872629,52.76962366,2748.8,2748.7,2.65437097]
[1752089872834,52.53298226,2748.8,2748.7,7.85843867]
[1752089873040,52.53298226,2748.8,2748.7,2.65437097]
[1752089873435,52.04221366,2748.8,2748.7,2.65437097]
[1752089873936,12.57762366,2748.8,2748.7,2.65437097]
[1752089874240,52.66762366,2748.8,2748.7,2.65437097]
[1752089874642,52.66762366,2748.8,2748.7,1.76328097]
[1752089874643,12.57762366,2748.8,2748.7,1.76328097]
[1752089874937,0.72755,2748.3,2748.2,7.28422428]
[1752089875344,0.72757,2748.2,2747.9,3.2132617]
[1752089875643,0.7276,2748.1,2747.9,10.49748598]
[1752089875943,1.2971,2748.2,2747.9,10.49748598]
[1752089875944,1.58784077,2748.0,2747.9,10.49748598]
[1752089876132,0.86022077,2748.0,2747.9,3.2132617]
[1752089876340,1.58784077,2748.0,2747.9,3.2132617]
[1752089877038,4.19941401,2748.0,2747.9,0.0054617]
[1752089877239,3.92633916,2748.0,2747.9,0.0054617]
[1752089877739,3.92633916,2748.0,2747.0,1.3411]
[1752089877740,66.4460924,2748.0,2746.9,7.28422428]
[1752089877940,0.72803,2746.5,2745.8,13.61120229]
[1752089878134,1.73719039,2746.3,2745.8,18.51677505]
[1752089878335,0.72809,2746.3,2745.8,7.38518276]
[1752089878542,42.49957324,2746.4,2745.9,0.9182]
[1752089878845,2.61157324,2746.4,2746.3,3.13641766]
[1752089879041,0.0054617,2746.4,2746.3,0.9182]
[1752089879250,0.28844527,2747.0,2746.3,6.73234543]
[1752089879446,52.43,2747.8,2746.9,3.13556413]
[1752089879650,52.43,2747.8,2747.3,1.56915381]
[1752089880047,0.7278,2747.4,2747.2,1.56915381]
[1752089880248,0.72783,2747.3,2747.1,1.56915381]
[1752089880449,1.2517,2747.6,2747.2,1.56915381]
[1752089880644,40.62672,2747.7,2747.3,2.48735381]
[1752089880942,39.899,2747.7,2747.3,4.77695381]
[1752089881251,1.94011,2747.7,2747.6,1.56915381]
[1752089881451,0.72773,2747.6,2747.4,2.09220509]
[1752089881650,1.94011,2747.7,2747.5,1.57509355]
[1752089881850,1.2124,2747.7,2747.3,3.2078]
[1752089882149,0.72777,2747.5,2747.3,4.126]
[1752089882348,0.72778,2747.4,2747.3,4.126]
[1752089882750,3.33935324,2747.4,2747.3,0.73066721]
[1752089882946,8.33935324,2747.4,2747.3,0.73066721]
[1752089883145,48.10735324,2747.4,2747.3,0.54859612]
[1752089883544,48.08135324,2747.4,2747.3,0.36652503]
[1752089883757,51.78464648,2747.4,2746.9,0.67325858]
[1752089883944,51.78464648,2747.4,2746.3,6.34336413]
[1752089883945,5.81937324,2747.0,2746.8,2.09220509]
[1752089884145,5.81937324,2747.0,2746.3,3.2078]
[1752089884146,0.72797,2746.7,2746.6,3.13556413]
[1752089884343,0.728,2746.6,2746.3,3.2078]
[1752089884542,0.72805,2746.4,2746.3,3.2078]
[1752089884752,40.39305,2746.4,2746.3,3.2078]
[1752089884951,0.7281,2746.2,2746.1,0.0054617]
[1752089886850,0.7281,2746.2,2746.1,1.63412672]
[1752089887756,0.7281,2746.2,2746.1,4.79184141]
[1752089887951,0.7281,2746.2,2746.1,1.63412672]
[1752089888146,0.7281,2746.2,2746.1,1.45196874]
[1752089888550,5.7281,2746.2,2746.1,1.26981076]
[1752089888849,5.7281,2746.2,2746.1,1.08765278]
[1752089889252,1.3169,2746.3,2746.0,3.2078]
[1752089889552,0.7281,2746.2,2746.0,3.2078]
[1752089889749,0.7281,2746.2,2745.0,9.77618543]
[1752089889750,0.7281,2746.2,2746.1,1.2853]
[1752089889945,0.0054617,2746.4,2745.9,3.2078]
[1752089890148,0.7335217,2746.4,2746.2,3.2078]
[1752089890357,0.7335117,2746.4,2746.3,1.2853]
[1752089890557,0.72807,2746.3,2746.2,3.2078]
[1752089892554,0.72823,2745.7,2745.6,3.2078]
[1752089892850,39.3334617,2746.4,2745.6,4.1836]
[1752089893051,0.0054617,2746.4,2746.2,3.2078]
[1752089893252,0.49672126,2746.4,2746.3,1.13852275]
[1752089893453,0.48571346,2746.4,2746.3,0.5692909]
[1752089893855,0.48571346,2746.4,2746.3,1.8703909]
[1752089894257,0.72804,2746.5,2746.3,0.5692909]
[1752089894447,52.459,2746.8,2746.4,0.5692909]
[1752089894653,0.72805,2746.4,2746.3,1.3011]
[1752089894961,0.72807,2746.3,2746.2,3.2078]
[1752089895359,52.459,2746.8,2746.2,3.77705463]
[1752089895553,1.73151,2746.6,2746.5,3.2078]
[1752089895862,1.73151,2746.6,2746.5,3.77705463]
[1752089896056,1.73151,2746.6,2746.5,0.56925463]
[1752089896356,1.73151,2746.6,2745.8,0.6479]
[1752089896357,1.82009,2746.5,2745.8,0.6479]
[1752089896659,0.72815,2746.0,2745.9,0.56021793]
[1752089897653,42.94162771,2746.4,2745.7,3.2078]
[1752089897654,0.72821,2745.8,2745.7,3.2078]
[1752089897851,0.72821,2745.8,2745.7,0.52614922]
[1752089898052,45.70877983,2745.8,2745.7,9.22e-06]
[1752089898356,69.63389829,2745.8,2744.2,0.72863]
[1752089898556,3.2078,2744.5,2744.2,6.73234543]
[1752089898755,3.2078,2744.5,2744.3,1.3454]
[1752089898756,3.19026592,2744.4,2744.3,1.3454]
[1752089899260,17.25182671,2744.4,2742.6,3.93108495]
[1752089899459,10.81904653,2743.8,2742.9,1.82245]
[1752089899650,2.18676592,2743.7,2743.5,0.7288]
[1752089899850,2.18676592,2743.6,2743.5,0.7288]
[1752089900050,2.18676592,2743.6,2743.5,10.66894543]
[1752089900249,4.2113,2744.7,2743.5,8.2078]
[1752089900461,14.79016079,2744.4,2743.3,1.8276317]
[1752089900655,14.79016079,2744.4,2743.8,0.72872]
[1752089900862,17.26936079,2744.4,2744.0,0.72866]
[1752089901058,17.99795079,2744.4,2743.5,3.2078]
[1752089901263,17.26936079,2744.4,2743.9,0.7287]
[1752089901458,17.26936079,2744.4,2743.5,3.2078]
[1752089901862,17.26936079,2744.4,2743.8,3.2078]
[1752089902062,17.26936079,2744.4,2744.0,0.72867]
[1752089902459,17.99795079,2744.4,2744.1,1.3112]
[1752089902766,17.99796079,2744.4,2744.1,1.3112]
[1752089903067,3.2078,2744.4,2744.1,1.3112]
[1752089903268,0.72861,2744.3,2744.1,1.3112]
[1752089903472,3.2078,2744.4,2744.1,2.03985]
[1752089903764,3.2078,2744.4,2744.1,1.3112]
[1752089903965,3.2078,2744.4,2744.2,2.03983]
[1752089904163,3.2078,2744.4,2744.3,2.03981]
[1752089904763,3.2078,2744.4,2743.9,0.6262]
[1752089904956,1.0035,2744.3,2744.0,1.2862]
[1752089905156,3.2078,2744.4,2744.3,0.72861]
[1752089905458,3.2078,2745.0,2744.0,0.72868]
[1752089905658,7.56028005,2744.1,2743.9,0.38084072]
[1752089905862,7.56028005,2744.1,2744.0,0.72869]
[1752089906161,1.0035,2745.1,2744.0,0.72869]
[1752089906162,0.51980328,2744.4,2744.3,0.72861]
[1752089906366,3.2078,2745.3,2744.7,1.82121]
[1752089906664,3.93615,2745.3,2745.1,0.72839]
[1752089906865,0.72837,2745.2,2745.0,0.7284]
[1752089907065,4.2113,2745.3,2745.1,1.21573865]
[1752089907261,4.93964,2745.3,2745.2,0.48773742]
[1752089907460,0.72837,2745.2,2744.9,0.72843]
[1752089907660,0.72837,2745.2,2745.0,0.48756616]
[1752089907866,0.72837,2745.2,2745.1,0.48756616]
[1752089908062,4.2113,2745.3,2744.7,0.0054617]
[1752089908268,4.2113,2745.3,2744.8,0.4831803]
[1752089908469,4.93966,2745.3,2744.9,0.72843]
[1752089908661,4.9451217,2745.3,2744.6,1.82132]
[1752089908868,4.2167617,2745.3,2745.0,0.7284]
[1752089909170,4.9451017,2745.3,2745.0,0.7284]
[1752089909363,4.2167617,2745.3,2744.8,1.82117]
[1752089909563,4.2167617,2745.3,2744.7,0.6567]
[1752089909764,5.40953683,2744.9,2744.8,0.72847]
[1752089910058,5.40953683,2745.0,2744.9,0.72845]
[1752089910764,5.40953683,2745.0,2744.9,5.72845]
[1752089910959,0.0054617,2745.3,2745.2,0.72837]
[1752089911160,5.41531333,2745.3,2744.7,2.4779]
[1752089911359,3.2132617,2745.3,2744.7,0.6567]
[1752089911564,4.32896495,2744.9,2744.7,0.6567]
[1752089911766,4.32896495,2744.9,2744.7,1.3852]
[1752089911963,5.33246495,2744.8,2744.7,0.6567]
[1752089912168,7.51889099,2744.8,2744.7,0.6567]
[1752089912470,1.40257604,2744.8,2744.7,6.3852]
[1752089912871,1.40257604,2744.8,2744.7,8.99964875]
[1752089913071,1.40257604,2744.8,2744.7,6.3852]
[1752089913765,5.73154099,2744.8,2744.7,6.3852]
[1752089914068,1.40257604,2744.8,2744.7,6.3852]
[1752089914265,5.73154099,2744.8,2744.7,6.3852]
[1752089914460,1.40257604,2744.8,2744.7,0.7285]
[1752089914669,1.40257604,2744.8,2744.1,1.82165]
[1752089914971,4.3352349,2744.5,2744.4,0.72858]
[1752089915368,3.2078,2744.6,2744.5,0.72855]
[1752089915772,2.3383,2744.7,2744.0,1.82172]
[1752089915974,4.33636018,2744.6,2744.5,0.72855]
[1752089916273,3.2078,2744.6,2743.9,5.02954]
[1752089916475,3.25377784,2744.0,2743.9,0.72871]
[1752089917468,3.25377784,2744.1,2744.0,0.72869]
[1752089917774,4.33837045,2744.4,2744.0,0.72869]
[1752089917975,4.33837045,2744.2,2744.1,0.72866]
[1752089918165,2.2098,2744.3,2744.2,0.72863]
[1752089919574,2.2098,2744.3,2744.1,0.72864]
[1752089919774,0.9852,2744.2,2743.8,1.82183]
[1752089919968,1.2246,2744.1,2743.7,1.82187]
[1752089920173,5.3310686,2744.0,2743.9,0.72871]
[1752089920469,0.9852,2744.0,2743.9,0.72871]
[1752089920675,5.40985163,2744.2,2744.1,0.72866]
[1752089920870,6.39505163,2744.2,2744.1,0.72866]
[1752089921277,0.9852,2744.2,2744.1,0.72866]
[1752089921579,5.43426051,2744.5,2744.4,0.72858]
[1752089921876,5.43426051,2744.6,2744.5,0.72855]
[1752089922377,12.02576007,2744.8,2744.7,0.7285]
[1752089922773,0.9852,2744.9,2744.8,0.72847]
[1752089923270,4.193,2744.9,2744.2,1.82159]
[1752089923574,3.2078,2744.5,2744.0,1.82171]
[1752089923777,3.2078,2744.5,2744.4,0.72858]
[1752089924174,3.2078,2744.5,2743.9,3.2078]
[1752089924369,4.35012844,2744.4,2744.3,0.7286]
[1752089924572,6.53698949,2744.4,2744.3,1.26723015]
[1752089924773,6.53698949,2744.4,2744.3,1.24889634]
[1752089925777,6.53849285,2744.4,2744.3,6.24889634]
[1752089925976,2.18686105,2744.4,2744.3,6.24889634]
[1752089926180,1.05e-06,2744.4,2744.3,6.54959634]
[1752089927869,3.26533975,2744.4,2744.3,6.24889634]
[1752089928077,1.05e-06,2744.4,2744.3,1.24889634]
[1752089928381,3.2078,2744.8,2744.3,2.20056722]
[1752089928581,0.9852,2744.7,2744.5,4.98854887]
[1752089928782,0.9852,2744.7,2744.6,2.92909722]
[1752089929080,3.93629,2744.8,2744.6,2.92909722]
[1752089929280,0.9852,2744.7,2744.3,4.26000887]
[1752089929475,0.72855,2744.5,2744.4,2.10147428]
[1752089929780,4.92155,2744.5,2744.4,2.10147428]
[1752089930675,4.92155,2744.5,2743.4,5.32519931]
[1752089930676,0.72881,2743.6,2743.3,5.32519931]
[1752089930875,0.9852,2743.6,2743.5,0.72882]
[1752089931376,1.71386,2744.1,2743.4,2.61444875]
[1752089931582,0.9852,2744.1,2744.0,0.72869]
[1752089931880,0.9852,2744.1,2743.4,1.8221]
[1752089932077,3.93651,2743.9,2743.8,3.19997261]
[1752089932275,0.72876,2743.8,2743.5,0.72881]
[1752089932582,3.2078,2743.6,2743.5,0.72881]
[1752089932981,4.193,2743.6,2743.5,0.72881]
[1752089933376,4.193,2743.6,2743.1,5.32519931]
[1752089933581,4.193,2743.6,2742.9,5.03022]
[1752089933582,3.2078,2743.3,2743.2,0.7289]
[1752089933882,2.8523622,2743.5,2743.4,0.72885]
[1752089934081,0.6308,2743.8,2743.6,0.72877]
[1752089934277,3.2078,2743.5,2743.1,0.72893]
[1752089934678,0.9852,2743.4,2742.9,8.53299931]
[1752089934883,3.2078,2743.5,2742.9,9.83379931]
[1752089935083,3.2078,2743.5,2742.9,3.2078]
[1752089935481,3.2078,2743.5,2742.8,5.32519931]
[1752089935482,0.72898,2742.9,2742.8,5.32519931]
[1752089935686,0.72901,2742.8,2742.7,5.32519931]
[1752089935880,0.72903,2742.7,2742.6,5.32519931]
[1752089936287,0.72903,2742.8,2742.6,0.72906]
[1752089936592,0.72904,2742.7,2742.5,6.05426931]
[1752089936880,4.193,2743.5,2742.5,5.0]
[1752089937086,3.2078,2743.5,2742.8,4.43693875]
[1752089937289,3.2078,2743.5,2743.4,3.92711009]
[1752089937684,4.4905,2743.8,2743.4,3.19826009]
[1752089937987,2.01144,2743.8,2743.7,2.13198197]
[1752089938188,4.4905,2743.8,2743.3,3.19826009]
[1752089938387,0.72885,2743.4,2743.3,3.19826009]
[1752089938587,0.72886,2743.4,2743.3,2.13213657]
[1752089938791,1.97906,2743.4,2743.3,2.13213657]
[1752089938983,1.2502,2743.4,2743.2,0.72889]
[1752089939283,1.2502,2743.4,2743.1,3.92717009]
[1752089939488,1.2502,2743.4,2743.3,2.13070166]
[1752089939788,1.2502,2743.4,2743.2,2.13070166]
[1752089939983,3.2078,2743.5,2743.4,0.72885]
[1752089940178,0.9852,2743.7,2743.6,0.72879]
[1752089940687,0.9852,2743.7,2743.1,6.06742166]
[1752089940886,0.72887,2743.3,2743.2,2.13070166]
[1752089941183,1.2502,2743.6,2743.5,0.72882]
[1752089941382,1.2502,2743.6,2743.5,2.13110331]
[1752089941383,1.97899,2743.6,2743.5,2.13110331]
[1752089941588,1.2502,2743.6,2743.4,3.19665497]
[1752089941889,1.71402,2743.5,2743.4,3.19665497]
[1752089942590,0.9852,2743.5,2743.4,2.317401]
[1752089942787,1.71403,2743.5,2743.4,2.317401]
[1752089942983,0.9852,2743.5,2743.4,3.046251]
[1752089943383,1.2502,2743.6,2743.5,0.72882]
[1752089943584,2.2354,2743.6,2743.5,2.317401]
[1752089943890,2.2354,2743.6,2743.5,3.046221]
[1752089944387,3.2078,2743.7,2743.5,2.317401]
[1752089944587,3.2078,2743.7,2743.6,4.44647767]
[1752089944788,3.2078,2743.7,2743.6,5.17526767]
[1752089945187,0.0054617,2743.9,2743.8,0.72874]
[1752089945382,0.0054617,2743.9,2743.8,2.317401]